fUSD/lending_fUSD_20241208
["ID","MTS","AMOUNT","RATE_DAILY","PERIOD"]
[344656963,1733697191147,500.0,0.0002442,120]
[344656965,1733697267542,-6663.68,0.000242,31]
[344656966,1733697267574,-6663.68,0.000242,31]
[344656967,1733697267607,-6663.68,0.000242,31]
[344656968,1733697267637,-6663.68,0.000242,31]
[344656969,1733697267670,-6663.68,0.000242,31]
[344656970,1733697267701,-6663.68,0.000242,31]
[344656971,1733697267745,-6663.68,0.000242,31]
[344656972,1733697267782,-3354.24,0.000242,31]
[344656973,1733697303116,8456.0,0.00025,120]
[344656974,1733697317408,168.94,0.00017532,30]
[344656975,1733697358893,150.0,0.000251,120]
[344656976,1733697360107,150.0,0.000251,120]
[344656977,1733697360834,150.0,0.000251,120]
[344656978,1733697361418,150.0,0.000251,120]
[344656979,1733697361970,150.0,0.000251,120]
[344656980,1733697362580,150.0,0.000251,120]
[344656981,1733697364008,150.0,0.000251,120]
[344656982,1733697364231,150.0,0.000251,120]
[344656983,1733697364381,150.0,0.000251,120]
[344656984,1733697364933,150.0,0.000251,120]
[344656985,1733697420134,150.0,0.000251,120]
[344656986,1733697430460,150.0,0.000251,120]
[344656987,1733697791814,500.0,0.00023674,120]
[344656988,1733697792177,500.0,0.00024481,120]
[344657000,1733698232081,-447.2697999,0.00015497,2]
[344657003,1733698232094,-331.7502001,0.00015497,2]
[344657005,1733698232104,-2981.55563283,0.00016248,2]
[344657007,1733698232114,-267.057284,0.00016348,2]
[344657009,1733698232124,-1702.53992882,0.00016531,2]
[344657010,1733698232138,-900.0,0.00016631,2]
[344657012,1733698232148,-400.0,0.000169,6]
[344657014,1733698232158,-764.19461433,0.00017,6]
[344657016,1733698232241,-135.80538567,0.00017,6]
[344657017,1733698232251,-177.79766424,0.00017099,2]
[344657018,1733698232262,-1400.0,0.000171,6]
[344657019,1733698232271,-172.43445619,0.00017149,2]
[344657020,1733698232394,-127.56554381,0.00017149,2]
[344657021,1733698232403,-3904.55213619,0.0001715,10]
[344657022,1733698232415,-681.74822923,0.0001715,10]
[344657070,1733698238074,-76929.00007724,0.0001715,10]
[344657071,1733698238331,-4599.91956467,0.0001715,10]
[344657072,1733698238343,-12704.99985,0.0001715,10]
[344657091,1733698240172,-2124.29767385,0.0001715,10]
[344657092,1733698240186,-3644.6,0.0001715,10]
[344657093,1733698240261,-632.39752347,0.0001715,10]
[344657102,1733698243218,-270.7,0.0001715,10]
[344657103,1733698243347,-306.06,0.0001715,10]
[344657104,1733698243358,-2825.72902732,0.0001715,10]
[344657105,1733698243369,-4735.19340525,0.0001715,10]
[344657106,1733698243475,-3175.15507907,0.0001715,10]
[344657107,1733698243489,-2943.34519077,0.0001715,10]
[344657108,1733698243612,-201171.21280962,0.0001715,10]
[344657109,1733698243623,-90350.61065257,0.0001715,10]
[344657119,1733698246082,-320.70234502,0.0001715,10]
[344657120,1733698246095,-1177.46401694,0.0001715,10]
[344657121,1733698246106,-532.19886339,0.0001715,10]
[344657122,1733698246126,-550229.1535554,0.0001715,10]
[344657123,1733698246135,-150.0,0.00017151,2]
[344657124,1733698246144,-530.6,0.00017166,2]
[344657125,1733698246154,-500.0,0.00017173,2]
[344657126,1733698246163,-933.18,0.00017199,2]
[344657127,1733698246173,-250.0,0.00017199,2]
[344657128,1733698246182,-200.0,0.00017199,2]
[344657129,1733698246193,-1800.0,0.000172,6]
[344657130,1733698246203,-250.0,0.0001727,2]
[344657131,1733698246212,-2300.0,0.000173,6]
[344657132,1733698246222,-168.39,0.00017378,2]
[344657133,1733698246231,-400.0,0.000174,6]
[344657134,1733698246241,-1000.0,0.0001747,2]
[344657135,1733698246250,-150.0,0.00017484,2]
[344657136,1733698246260,-150.0,0.00017488,2]
[344657137,1733698246269,-150.0,0.00017488,2]
[344657138,1733698246278,-150.0,0.00017488,2]
[344657139,1733698246287,-39433.7394866,0.00017488,2]
[344657140,1733698246296,-2949.08704283,0.00017488,2]
[344657141,1733698246306,-2061.10352542,0.00017488,2]
[344657142,1733698246315,-400.0,0.000175,6]
[344657143,1733698246324,-300.623,0.0001757,2]
[344657144,1733698246333,-400.0,0.000176,6]
[344657145,1733698246343,-400.0,0.000177,6]
[344657146,1733698246352,-1000.0,0.00017721,2]
[344657147,1733698246362,-779.02,0.00017761,2]
[344657148,1733698246371,-1000.0,0.000178,6]
[344657149,1733698246381,-280.0,0.00018122,2]
[344657150,1733698246391,-1006.82,0.00018122,2]
[344657151,1733698246400,-2563.8507,0.00018122,2]
[344657152,1733698246409,-1011.08,0.00018122,2]
[344657153,1733698246419,-2502.229,0.000184,2]
[344657154,1733698246429,-166.709,0.000184,2]
[344657155,1733698246439,-5987.21124483,0.000184,2]
[344657156,1733698246449,-846.94083881,0.000184,2]
[344657157,1733698246459,-55.20145708,0.00018473,2]
[344657158,1733698246471,-338.68006417,0.00018473,2]
[344657159,1733698246481,-989.99,0.00018474,2]
[344657160,1733698246490,-1006.79,0.00018477,2]
[344657161,1733698246502,-1262.0,0.00018486,2]
[344657162,1733698246512,-567.0,0.00018486,2]
[344657163,1733698246521,-631.0,0.00018486,2]
[344657164,1733698246531,-563.0,0.00018486,2]
[344657165,1733698246540,-3762.0,0.00018486,2]
[344657167,1733698246550,-817.0,0.00018486,2]
[344657168,1733698246559,-1252.125,0.00018486,2]
[344657169,1733698246569,-973.0,0.00018486,2]
[344657170,1733698246580,-535.0,0.00018486,2]
[344657171,1733698246590,-150.0,0.00018486,2]
[344657172,1733698246599,-333.0,0.00018498,3]
[344657173,1733698246608,-333.0,0.00018498,3]
[344657174,1733698246617,-333.0,0.00018498,3]
[344657175,1733698246626,-333.0,0.00018498,3]
[344657176,1733698246635,-333.0,0.00018498,3]
[344657177,1733698246645,-333.0,0.00018498,3]
[344657178,1733698246654,-333.0,0.00018498,3]
[344657179,1733698246663,-333.0,0.00018498,3]
[344657180,1733698246673,-333.0,0.00018498,3]
[344657181,1733698246682,-333.0,0.00018498,3]
[344657182,1733698246692,-333.0,0.00018498,2]
[344657183,1733698246701,-333.0,0.00018498,2]
[344657184,1733698246710,-333.0,0.00018498,2]
[344657185,1733698246719,-333.0,0.00018498,2]
[344657186,1733698246728,-333.0,0.00018498,2]
[344657187,1733698246738,-333.0,0.00018498,2]
[344657188,1733698246747,-333.0,0.00018498,2]
[344657189,1733698246757,-333.0,0.00018498,2]
[344657190,1733698246766,-333.0,0.00018498,2]
[344657191,1733698246778,-333.0,0.00018498,2]
[344657192,1733698246788,-150.0,0.00018498,2]
[344657193,1733698246797,-150.0,0.00018498,2]
[344657194,1733698246807,-150.0,0.00018498,2]
[344657195,1733698246816,-150.0,0.00018498,2]
[344657196,1733698246825,-150.0,0.00018498,2]
[344657197,1733698246837,-150.0,0.00018498,2]
[344657198,1733698246847,-150.0,0.00018498,3]
[344657199,1733698246857,-150.0,0.00018498,3]
[344657200,1733698246867,-150.0,0.00018498,3]
[344657201,1733698246876,-150.0,0.00018498,2]
[344657202,1733698246885,-150.0,0.00018498,3]
[344657203,1733698246896,-150.0,0.00018498,3]
[344657204,1733698246905,-242.74176199,0.00018498,2]
[344657205,1733698246915,-1000.0,0.00018499,2]
[344657206,1733698246924,-1011.84079898,0.00018499,5]
[344657207,1733698246933,-1011.84079898,0.00018499,5]
[344657208,1733698246942,-1011.84079898,0.00018499,5]
[344657209,1733698246952,-1011.84079898,0.00018499,5]
[344657210,1733698246961,-1011.84079898,0.00018499,5]
[344657211,1733698246971,-1011.84079902,0.00018499,5]
[344657212,1733698246980,-1011.84079898,0.00018499,5]
[344657213,1733698246990,-1011.84079898,0.00018499,5]
[344657214,1733698246999,-1011.84079898,0.00018499,5]
[344657215,1733698247008,-1011.84079898,0.00018499,5]
[344657216,1733698247018,-715.5,0.00018499,2]
[344657217,1733698247027,-371535.28305128,0.00018499,2]
[344657218,1733698247038,-201204.3127301,0.00018499,2]
[344657219,1733698247057,-4029.76950855,0.00018499,2]
[344657220,1733698247161,-1011.74279067,0.00018499,2]
[344657224,1733698391383,500.0,0.00023674,120]
[344657225,1733698392590,500.0,0.00024524,120]
[344657233,1733698567074,150.0,0.000251,120]
[344657234,1733698568107,150.0,0.000251,120]
[344657235,1733698568842,150.0,0.000251,120]
[344657236,1733698569533,150.0,0.000251,120]
[344657237,1733698570184,150.0,0.000251,120]
[344657238,1733698570755,150.0,0.000251,120]
[344657239,1733698571400,150.0,0.000251,120]
[344657240,1733698572033,150.0,0.000251,120]
[344657241,1733698723413,10000.0,0.00025,120]
[344657253,1733698991293,500.0,0.00023674,120]
[344657254,1733698991744,500.0,0.00024576,120]
[344657257,1733699012494,-160.49,0.00018075,30]
[344657258,1733699012552,-160.49,0.00020659,30]
[344657259,1733699030092,17270.48777,0.00025,120]
[344657260,1733699042253,-160.49,0.00023243,30]
[344657261,1733699042279,-6163.93,0.000242,31]
[344657262,1733699042305,-6163.93,0.000242,31]
[344657263,1733699042330,-6163.93,0.000242,31]
[344657264,1733699042356,-5066.72,0.000242,31]
[344657265,1733699112061,30000.0,0.00025,120]
[344657268,1733699247381,6000.0,0.000251,120]
[344657279,1733699300815,1556.22,0.000251,120]
[344657280,1733699358127,166.4,0.00017167,30]
[344657331,1733699432624,-701.11,0.00015065,2]
[344657333,1733699432634,-400.0,0.000169,6]
[344657334,1733699432643,-189.89546868,0.00016928,2]
[344657337,1733699432671,-60.10453132,0.00016928,2]
[344657338,1733699432680,-466.59,0.00016933,2]
[344657339,1733699432690,-900.0,0.00017,6]
[344657340,1733699432699,-301.83,0.00017011,3]
[344657341,1733699432709,-575.52,0.00017057,2]
[344657342,1733699432718,-1400.0,0.000171,6]
[344657343,1733699432728,-175.38,0.00017109,2]
[344657344,1733699432738,-150.0,0.00017167,2]
[344657345,1733699432748,-240.19738888,0.00017167,2]
[344657346,1733699432757,-1900.0,0.000172,6]
[344657348,1733699432767,-250.0,0.00017281,2]
[344657350,1733699432776,-2300.0,0.000173,6]
[344657352,1733699432785,-293.20576579,0.00017306,2]
[344657354,1733699432798,-6.79423421,0.00017306,2]
[344657356,1733699432808,-941.45189408,0.00017307,2]
[344657359,1733699432827,-58.54810592,0.00017307,2]
[344657361,1733699432836,-250.0,0.00017307,2]
[344657362,1733699432846,-150.99,0.00017329,2]
[344657363,1733699432856,-701.11,0.00017329,2]
[344657365,1733699432865,-166.08214382,0.000174,6]
[344657367,1733699432877,-233.91785618,0.000174,6]
[344657369,1733699432887,-299.99,0.00017489,4]
[344657370,1733699432896,-400.0,0.000175,6]
[344657371,1733699432905,-162.82990878,0.0001757,2]
[344657372,1733699432917,-125.01809122,0.0001757,2]
[344657373,1733699432926,-400.0,0.000176,6]
[344657374,1733699432937,-400.0,0.000177,6]
[344657375,1733699432947,-313.02190878,0.000178,6]
[344657376,1733699432967,-364.96545524,0.000178,6]
[344657378,1733699432979,-322.01263598,0.000178,6]
[344657380,1733699432989,-150.73,0.00017878,2]
[344657382,1733699432999,-2144.18586274,0.00018,2]
[344657387,1733699433043,-1190.59999,0.00018,2]
[344657389,1733699433056,-2415.71520586,0.00018,2]
[344657390,1733699433067,-300.0,0.00018,2]
[344657391,1733699433077,-150.0,0.00018171,2]
[344657392,1733699433087,-732.49594148,0.000183,2]
[344657393,1733699433097,-2500.0,0.00018385,2]
[344657394,1733699433107,-16663.0596,0.00018399,2]
[344657395,1733699433118,-1296.8736,0.00018399,2]
[344657396,1733699433129,-2754.2515,0.000184,2]
[344657397,1733699433138,-2001.783,0.000184,2]
[344657398,1733699433148,-166.709,0.000184,2]
[344657399,1733699433159,-4740.25308634,0.000184,2]
[344657400,1733699433169,-3000.0,0.0001846,2]
[344657401,1733699433180,-500.0,0.00018473,2]
[344657402,1733699433190,-306.061,0.00018486,2]
[344657403,1733699433201,-483.71,0.00018486,2]
[344657404,1733699433213,-563.0,0.00018486,2]
[344657405,1733699433223,-1575.10781568,0.00018486,2]
[344657406,1733699433236,-2184.89218432,0.00018486,2]
[344657407,1733699433246,-817.0,0.00018486,2]
[344657408,1733699433256,-535.0,0.00018486,2]
[344657409,1733699433265,-973.0,0.00018486,2]
[344657410,1733699433274,-6519.09,0.00018486,2]
[344657411,1733699433284,-150.0,0.00018486,2]
[344657412,1733699433296,-222.0,0.00018498,2]
[344657413,1733699433307,-222.0,0.00018498,2]
[344657414,1733699433317,-222.0,0.00018498,2]
[344657415,1733699433327,-222.0,0.00018498,2]
[344657416,1733699433337,-222.0,0.00018498,2]
[344657417,1733699433347,-222.0,0.00018498,2]
[344657418,1733699433357,-222.0,0.00018498,2]
[344657419,1733699433366,-222.0,0.00018498,2]
[344657420,1733699433376,-222.0,0.00018498,2]
[344657421,1733699433386,-222.0,0.00018498,2]
[344657422,1733699433396,-222.0,0.00018498,3]
[344657423,1733699433406,-222.0,0.00018498,3]
[344657424,1733699433416,-222.0,0.00018498,3]
[344657425,1733699433426,-222.0,0.00018498,3]
[344657426,1733699433436,-222.0,0.00018498,3]
[344657427,1733699433445,-222.0,0.00018498,3]
[344657428,1733699433456,-222.0,0.00018498,3]
[344657429,1733699433466,-222.0,0.00018498,3]
[344657430,1733699433477,-222.0,0.00018498,3]
[344657431,1733699433488,-222.0,0.00018498,3]
[344657432,1733699433498,-160.0,0.00018498,2]
[344657433,1733699433509,-10000.0,0.00018499,2]
[344657434,1733699433519,-1000.0,0.00018499,2]
[344657435,1733699433529,-3000.0,0.00018499,2]
[344657436,1733699433539,-997.27,0.000185,2]
[344657437,1733699433550,-69681.89944747,0.000185,2]
[344657438,1733699433564,-1204.50000005,0.000185,2]
[344657439,1733699433612,-730.71440906,0.000185,2]
[344657440,1733699433624,-2605.86339367,0.000185,2]
[344657441,1733699433636,-2143.40822256,0.000185,2]
[344657442,1733699433648,-1182.71091713,0.000185,2]
[344657443,1733699433659,-1994.48349657,0.000185,2]
[344657444,1733699433671,-822.9,0.000185,2]
[344657445,1733699433683,-1134.58,0.000185,2]
[344657446,1733699433696,-5850.0,0.000185,2]
[344657448,1733699438285,-496.99999,0.000185,2]
[344657449,1733699438361,-7710.39487714,0.000185,2]
[344657450,1733699438562,-293.46049092,0.000185,2]
[344657451,1733699438573,-1023.74679934,0.000185,2]
[344657452,1733699438585,-565.75867559,0.000185,2]
[344657613,1733699440252,-5374.76455468,0.000185,2]
[344657616,1733699440263,-1660.32983124,0.000185,2]
[344657618,1733699440274,-12790.10670477,0.000185,2]
[344657627,1733699440351,-14337.79906049,0.000185,2]
[344657629,1733699440363,-783.44824385,0.000185,2]
[344657631,1733699440375,-156248.31015878,0.000185,2]
[344657640,1733699440451,-424.68241034,0.000185,2]
[344657642,1733699440463,-300.8039994,0.000185,2]
[344657644,1733699440474,-642.97607776,0.000185,2]
[344657651,1733699440535,-1874.66136598,0.000185,2]
[344657930,1733699443382,-500.0,0.00018473,2]
[344657932,1733699443391,-11599.6,0.000185,2]
[344657934,1733699443403,-5290.75747852,0.000185,2]
[344657936,1733699443414,-2974.37264608,0.000185,2]
[344657939,1733699443425,-16019.63050222,0.000185,2]
[344657941,1733699443436,-723.94393911,0.000185,2]
[344657948,1733699443493,-10517.76272479,0.000185,2]
[344657971,1733699443680,-3498.47199671,0.000185,2]
[344657977,1733699443730,-24911.32625304,0.000185,2]
[344657979,1733699443741,-158527.09881982,0.000185,2]
[344657982,1733699443752,-2504.75,0.000185,2]
[344658229,1733699446281,-2179.977979,0.000185,2]
[344658259,1733699446626,-1334640.61331405,0.000185,2]
[344658261,1733699446636,-58752.29235481,0.000185,2]
[344658263,1733699446645,-39592675.62543458,0.000185,10]
[344658266,1733699446660,-4966223.9105499,0.000185,10]
[344658268,1733699446670,-23384.25834862,0.000185,3]
[344658270,1733699446679,-170.98,0.00018528,2]
[344658272,1733699446689,-10972.87590643,0.00018544,2]
[344658274,1733699446698,-1363.40979859,0.00018544,2]
[344658276,1733699446707,-5659.54529823,0.00018544,2]
[344658278,1733699446717,-200.0,0.00018544,2]
[344658280,1733699446726,-1022.55734895,0.00018544,2]
[344658282,1733699446735,-200.0,0.00018545,2]
[344658284,1733699446745,-61652.81167729,0.00018546,2]
[344658286,1733699446754,-2387.62067269,0.00018546,2]
[344658288,1733699446764,-200.0,0.00018546,2]
[344658290,1733699446773,-200.0,0.00018547,2]
[344658292,1733699446782,-1384.43932377,0.00018547,2]
[344658294,1733699446792,-778.74711962,0.00018547,2]
[344658296,1733699446801,-200.0,0.00018547,2]
[344658298,1733699446811,-2387.62067269,0.00018547,2]
[344658300,1733699446821,-200.0,0.00018548,2]
[344658302,1733699446831,-766.91801171,0.00018548,2]
[344658304,1733699446840,-5659.54529823,0.00018548,2]
[344658306,1733699446849,-575.18850878,0.00018549,2]
[344658308,1733699446859,-8229.65692982,0.00018549,2]
[344658310,1733699446869,-1384.43932377,0.0001855,2]
[344658312,1733699446878,-438.04525479,0.0001855,2]
[344658314,1733699446887,-5659.54529823,0.00018551,2]
[344658316,1733699446897,-19507.33494477,0.00018551,2]
[344658318,1733699446906,-298.61554232,0.00018551,2]
[344658320,1733699446915,-10061.41386352,0.00018551,2]
[344658322,1733699446924,-200.0,0.00018551,2]
[344658324,1733699446935,-4244.65897367,0.00018551,2]
[344658326,1733699446944,-1363.40979859,0.00018551,2]
[344658328,1733699446955,-200.0,0.00018552,2]
[344658330,1733699446964,-242.65765214,0.00018552,2]
[344658360,1733699447244,-438.04525479,0.00018552,2]
[344658362,1733699447254,-200.0,0.00018552,2]
[344658364,1733699447263,-200.0,0.00018552,2]
[344658366,1733699447273,-1038.32949283,0.00018552,2]
[344658368,1733699447282,-4244.65897367,0.00018553,2]
[344658370,1733699447292,-34679.70656847,0.00018553,2]
[344658372,1733699447302,-200.0,0.00018553,2]
[344658374,1733699447311,-200.0,0.00018553,2]
[344658377,1733699447322,-5659.54529823,0.00018553,2]
[344658378,1733699447331,-1038.32949283,0.00018553,2]
[344658381,1733699447340,-34679.70656847,0.00018553,2]
[344658383,1733699447350,-200.0,0.00018554,2]
[344658385,1733699447359,-200.0,0.00018554,2]
[344658386,1733699447368,-200.0,0.00018554,2]
[344658388,1733699447378,-4244.65897367,0.00018554,2]
[344658390,1733699447387,-200.0,0.00018554,2]
[344658392,1733699447395,-200.0,0.00018555,2]
[344658394,1733699447405,-200.0,0.00018555,2]
[344658396,1733699447414,-323.54353619,0.00018555,2]
[344658398,1733699447423,-2387.62067269,0.00018555,2]
[344658400,1733699447432,-200.0,0.00018555,2]
[344658402,1733699447441,-200.0,0.00018555,2]
[344658404,1733699447450,-19507.33494477,0.00018556,2]
[344658406,1733699447460,-584.06033972,0.00018556,2]
[344658408,1733699447469,-200.0,0.00018556,2]
[344658410,1733699447478,-200.0,0.00018557,2]
[344658412,1733699447487,-200.0,0.00018557,2]
[344658414,1733699447496,-200.0,0.00018557,2]
[344658416,1733699447506,-223.96165674,0.00018557,2]
[344658418,1733699447515,-200.0,0.00018557,2]
[344658420,1733699447524,-34679.70656847,0.00018557,2]
[344658422,1733699447533,-766.91801171,0.00018558,2]
[344658424,1733699447542,-298.61554232,0.00018558,2]
[344658426,1733699447551,-7546.06039764,0.00018558,2]
[344658428,1733699447561,-200.0,0.00018558,2]
[344658430,1733699447571,-26009.77992636,0.00018558,2]
[344658431,1733699447580,-4244.65897367,0.00018558,2]
[344658432,1733699447589,-200.0,0.00018558,2]
[344658433,1733699447598,-200.0,0.00018559,2]
[344658434,1733699447607,-242.65765214,0.0001856,2]
[344658435,1733699447616,-200.0,0.0001856,2]
[344658436,1733699447625,-3183.49423025,0.0001856,2]
[344658437,1733699447633,-46239.60875796,0.0001856,2]
[344658439,1733699447642,-14630.50120857,0.0001856,2]
[344658441,1733699447651,-7546.06039764,0.0001856,2]
[344658443,1733699447661,-3183.49423025,0.0001856,2]
[344658445,1733699447671,-575.18850878,0.00018561,2]
[344658447,1733699447680,-200.0,0.00018561,2]
[344658449,1733699447689,-7546.06039764,0.00018561,2]
[344658451,1733699447699,-10061.41386352,0.00018562,2]
[344658453,1733699447709,-431.39138159,0.00018562,2]
[344658455,1733699447718,-200.0,0.00018562,2]
[344658457,1733699447727,-10972.87590643,0.00018562,2]
[344658459,1733699447736,-438.04525479,0.00018562,2]
[344658461,1733699447745,-200.0,0.00018563,2]
[344658463,1733699447754,-778.74711962,0.00018563,2]
[344658465,1733699447763,-4244.65897367,0.00018563,2]
[344658467,1733699447773,-1363.40979859,0.00018563,2]
[344658469,1733699447782,-10061.41386352,0.00018563,2]
[344658471,1733699447791,-438.04525479,0.00018564,2]
[344658473,1733699447801,-14630.50120857,0.00018564,2]
[344658475,1733699447810,-200.0,0.00018564,2]
[344658477,1733699447822,-200.0,0.00018564,2]
[344658479,1733699447832,-575.18850878,0.00018565,2]
[344658481,1733699447842,-10972.87590643,0.00018565,2]
[344658483,1733699447852,-200.0,0.00018565,2]
[344658485,1733699447862,-46239.60875796,0.00018565,2]
[344658487,1733699447872,-323.54353619,0.00018565,2]
[344658489,1733699447881,-10972.87590643,0.00018565,2]
[344658491,1733699447890,-431.39138159,0.00018565,2]
[344658493,1733699447899,-575.18850878,0.00018566,2]
[344658495,1733699447908,-1384.43932377,0.00018566,2]
[344658497,1733699447918,-6172.24269737,0.00018566,2]
[344658499,1733699447927,-14630.50120857,0.00018566,2]
[344658501,1733699447937,-14630.50120857,0.00018566,2]
[344658503,1733699447946,-223.96165674,0.00018566,2]
[344658505,1733699447957,-6172.24269737,0.00018566,2]
[344658507,1733699447967,-61652.81167729,0.00018567,2]
[344658509,1733699447976,-5659.54529823,0.00018567,2]
[344658511,1733699447986,-200.0,0.00018567,2]
[344658513,1733699447995,-584.06033972,0.00018567,2]
[344658515,1733699448005,-766.91801171,0.00018568,2]
[344658517,1733699448014,-584.06033972,0.00018568,2]
[344658519,1733699448023,-298.61554232,0.00018569,2]
[344658521,1733699448036,-200.0,0.00018569,2]
[344658523,1733699448046,-14630.50120857,0.00018569,2]
[344658525,1733699448055,-19507.33494477,0.0001857,2]
[344658527,1733699448065,-778.74711962,0.0001857,2]
[344658529,1733699448079,-46239.60875796,0.0001857,2]
[344658531,1733699448089,-1022.55734895,0.0001857,2]
[344658533,1733699448101,-3183.49423025,0.00018571,2]
[344658536,1733699448113,-10972.87590643,0.00018571,2]
[344658537,1733699448122,-398.15405643,0.00018571,2]
[344658539,1733699448132,-200.0,0.00018571,2]
[344658541,1733699448142,-8229.65692982,0.00018571,2]
[344658543,1733699448151,-200.0,0.00018572,2]
[344658545,1733699448161,-7546.06039764,0.00018572,2]
[344658547,1733699448170,-46239.60875796,0.00018572,2]
[344658550,1733699448180,-1038.32949283,0.00018572,2]
[344658551,1733699448189,-200.0,0.00018572,2]
[344658553,1733699448199,-323.54353619,0.00018574,2]
[344658556,1733699448209,-242.65765214,0.00018574,2]
[344658558,1733699448219,-200.0,0.00018574,2]
[344658560,1733699448229,-200.0,0.00018574,2]
[344658562,1733699448240,-323.54353619,0.00018575,2]
[344658564,1733699448250,-584.06033972,0.00018575,2]
[344658566,1733699448261,-19507.33494477,0.00018575,2]
[344658568,1733699448271,-6172.24269737,0.00018575,2]
[344658570,1733699448281,-200.0,0.00018575,2]
[344658572,1733699448291,-242.65765214,0.00018576,2]
[344658573,1733699448301,-398.15405643,0.00018576,2]
[344658575,1733699448311,-323.54353619,0.00018576,2]
[344658577,1733699448324,-200.0,0.00018576,2]
[344658580,1733699448335,-1363.40979859,0.00018576,2]
[344658581,1733699448345,-3183.49423025,0.00018576,2]
[344658583,1733699448355,-200.0,0.00018577,2]
[344658585,1733699448365,-323.54353619,0.00018577,2]
[344658587,1733699448376,-431.39138159,0.00018577,2]
[344658590,1733699448386,-26009.77992636,0.00018577,2]
[344658591,1733699448396,-1038.32949283,0.00018578,2]
[344658593,1733699448406,-200.0,0.00018578,2]
[344658595,1733699448417,-1363.40979859,0.00018578,2]
[344658597,1733699448427,-778.74711962,0.00018579,2]
[344658599,1733699448437,-200.0,0.00018579,2]
[344658601,1733699448447,-200.0,0.0001858,2]
[344658603,1733699448457,-200.0,0.0001858,2]
[344658605,1733699448467,-200.0,0.0001858,2]
[344658607,1733699448477,-46239.60875796,0.00018581,2]
[344658609,1733699448487,-200.0,0.00018581,2]
[344658612,1733699448497,-34679.70656847,0.00018581,2]
[344658613,1733699448507,-431.39138159,0.00018581,2]
[344658616,1733699448517,-200.0,0.00018581,2]
[344658617,1733699448527,-398.15405643,0.00018582,2]
[344658620,1733699448537,-298.61554232,0.00018582,2]
[344658622,1733699448547,-398.15405643,0.00018582,2]
[344658623,1733699448556,-200.0,0.00018582,2]
[344658625,1733699448566,-200.0,0.00018582,2]
[344658627,1733699448578,-8229.65692982,0.00018582,2]
[344658630,1733699448588,-200.0,0.00018583,2]
[344658631,1733699448598,-3183.49423025,0.00018583,2]
[344658633,1733699448607,-766.91801171,0.00018583,2]
[344658634,1733699448617,-200.0,0.00018583,2]
[344658635,1733699448627,-200.0,0.00018583,2]
[344658636,1733699448638,-1384.43932377,0.00018583,2]
[344658637,1733699448648,-766.91801171,0.00018583,2]
[344658638,1733699448658,-200.0,0.00018583,2]
[344658639,1733699448667,-200.0,0.00018584,2]
[344658641,1733699448677,-242.65765214,0.00018584,2]
[344658643,1733699448687,-1038.32949283,0.00018584,2]
[344658645,1733699448696,-778.74711962,0.00018584,2]
[344658647,1733699448706,-223.96165674,0.00018585,2]
[344658649,1733699448716,-223.96165674,0.00018585,2]
[344658651,1733699448725,-14630.50120857,0.00018585,2]
[344658653,1733699448735,-200.0,0.00018585,2]
[344658655,1733699448745,-10061.41386352,0.00018585,2]
[344658657,1733699448754,-2387.62067269,0.00018586,2]
[344658659,1733699448765,-431.39138159,0.00018586,2]
[344658661,1733699448774,-200.0,0.00018586,2]
[344658663,1733699448784,-200.0,0.00018586,2]
[344658665,1733699448793,-26009.77992636,0.00018586,2]
[344658667,1733699448804,-6172.24269737,0.00018586,2]
[344658669,1733699448815,-200.0,0.00018587,2]
[344658672,1733699448828,-200.0,0.00018587,2]